[Event "9th Bangabandhu Rapid Men 2021"]
[Site "Dhaka"]
[Date "2021.04.02"]
[Round "6.1"]
[White "Hossain, Enamul"]
[Black "Mohammad Fahad, Rahman"]
[Result "1/2-1/2"]
[ECO "D47"]
[WhiteElo "2404"]
[BlackElo "2321"]
[Annotator "ChessBase"]
[PlyCount "41"]
[EventDate "2021.04.02"]
[EventType "swiss"]
[EventCountry "BAN"]
[SourceTitle "playchess.com"]
[Source "ChessBase"]
[SourceQuality "1"]
[TimeControl "1500+10"]

1. d4 {[%emt 0:00:00]} d5 {[%emt 0:00:00]} 2. c4 {[%emt 0:00:00]} c6 {[%emt 0:00:00]} 3. Nf3 {[%emt 0:00:00]} Nf6 {[%emt 0:00:00]} 4. Nc3 {[%emt 0:00:00]} e6 {[%emt 0:00:00]} 5. e3 {[%emt 0:00:04]} Nbd7 {[%emt 0:00:00]} 6. Bd3 {[%emt 0:00:03]} dxc4 {[%emt 0:00:01]} 7. Bxc4 {[%emt 0:00:01]} b5 {[%emt 0:00:07]} 8. Bd3 {[%emt 0:00:02]} Bd6 {[%emt 0:00:02]} 9. O-O {[%emt 0:00:04]} O-O {[%emt 0:00:04]} 10. Bd2 {[%emt 0:00:09]} Bb7 {[%emt 0:00:16]} 11. Rc1 {[%emt 0:00:08]} Rc8 {[%emt 0:00:42]} 12. a3 {[%emt 0:26:29]} e5 {[%emt 0:01:51]} 13. b4 {[%emt 0:00:00]} Qe7 {[%emt 0:00:43]} 14. Ng5 {[%emt 0:00:00]} Bb8 {[%emt 0:02:34]} 15. Qc2 {[%emt 0:00:30]} h6 {[%emt 0:21:10]} 16. Nge4 Rcd8 {[%emt 0:00:10]} 17. Nxf6+ Nxf6 18. dxe5 {[%emt 0:00:30]} Bxe5 {[%emt 0:00:20]} 19. Ne4 {[%emt 0:00:10]} a5 {[%emt 0:00:10]} 20. Nc5 {[%emt 0:00:10]} Bd6 {[%emt 0:00:10]} 21. Ne4 {[%emt 0:00:10]} 1/2-1/2

[Event "9th Bangabandhu Rapid Men 2021"]
[Site "Dhaka"]
[Date "2021.04.02"]
[Round "6.2"]
[White "Rahman, Ziaur"]
[Black "Ghosh, Chanchal Kumer"]
[Result "1-0"]
[ECO "D30"]
[WhiteElo "2432"]
[BlackElo "2052"]
[Annotator "ChessBase"]
[PlyCount "57"]
[EventDate "2021.04.02"]
[EventType "swiss"]
[EventCountry "BAN"]
[SourceTitle "playchess.com"]
[Source "ChessBase"]
[SourceQuality "1"]
[TimeControl "1500+10"]

1. d4 {[%emt 0:00:00]} d5 {[%emt 0:00:00]} 2. Nf3 {[%emt 0:00:00]} Nf6 {[%emt 0:00:00]} 3. g3 {[%emt 0:00:24]} e6 {[%emt 0:00:15]} 4. Bg2 {[%emt 0:00:03]} c5 {[%emt 0:00:03]} 5. O-O {[%emt 0:00:04]} Nc6 {[%emt 0:00:08]} 6. c4 {[%emt 0:00:13]} Be7 {[%emt 0:00:27]} 7. cxd5 {[%emt 0:00:12]} exd5 {[%emt 0:00:05]} 8. dxc5 {[%emt 0:00:02]} Bxc5 {[%emt 0:00:15]} 9. a3 {[%emt 0:00:02]} O-O {[%emt 0:00:10]} 10. b4 {[%emt 0:00:07]} Bb6 {[%emt 0:00:45]} 11. Nc3 {[%emt 0:00:33]} h6 {[%emt 0:00:46]} 12. Bb2 {[%emt 0:25:20]} Re8 {[%emt 0:01:29]} 13. Rc1 {[%emt 0:00:00]} Bg4 {[%emt 0:00:51]} 14. Na4 {[%emt 0:00:00]} Bc7 {[%emt 0:01:02]} 15. Nc5 {[%emt 0:00:00]} Rb8 {[%emt 0:00:44]} 16. Nxb7 {[%emt 0:00:00]} Rxb7 {[%emt 0:01:05]} 17. Rxc6 {[%emt 0:00:00]} Ne4 {[%emt 0:02:56]} 18. Bd4 {[%emt 0:00:00]} Qd7 {[%emt 0:01:15]} 19. Rc1 {[%emt 0:00:00]} Qb5 {[%emt 0:02:51]} 20. Qc2 {[%emt 0:00:00]} a5 {[%emt 0:01:14]} 21. a4 {[%emt 0:01:30]} Qd7 {[%emt 0:01:54]} 22. b5 {[%emt 0:00:00]} Bd6 {[%emt 0:00:17]} 23. Qb2 {[%emt 0:00:00]} f6 {[%emt 0:00:23]} 24. Qa2 {[%emt 0:00:00]} Bb4 {[%emt 0:00:55]} 25. Rc6 {[%emt 0:00:00]} Kh8 {[%emt 0:01:10]} 26. Rd1 {[%emt 0:00:00]} Bh5 {[%emt 0:02:38]} 27. Qc2 {[%emt 0:00:00]} Bg6 {[%emt 0:02:28]} 28. Qc1 {[%emt 0:00:00]} Re6 {[%emt 0:00:38]} 29. Bh3 {[%emt 0:00:00]} 1-0

[Event "9th Bangabandhu Rapid Men 2021"]
[Site "Dhaka"]
[Date "2021.04.02"]
[Round "6.3"]
[White "Jabed Al Azad"]
[Black "Subrota, Biswas"]
[Result "1-0"]
[ECO "B19"]
[WhiteElo "1983"]
[BlackElo "2256"]
[Annotator "ChessBase"]
[PlyCount "53"]
[EventDate "2021.04.02"]
[EventType "swiss"]
[EventCountry "BAN"]
[SourceTitle "playchess.com"]
[Source "ChessBase"]
[SourceQuality "1"]
[TimeControl "1500+10"]

1. e4 {[%emt 0:00:00]} c6 {[%emt 0:00:00]} 2. d4 {[%emt 0:25:20]} d5 {[%emt 0:00:00]} 3. Nc3 {[%emt 0:00:00]} dxe4 {[%emt 0:00:00]} 4. Nxe4 {[%emt 0:00:00]} Bf5 {[%emt 0:00:00]} 5. Ng3 {[%emt 0:00:00]} Bg6 {[%emt 0:00:01]} 6. Nf3 {[%emt 0:00:00]} Nd7 {[%emt 0:00:02]} 7. h4 {[%emt 0:00:00]} h6 {[%emt 0:00:04]} 8. h5 {[%emt 0:00:00]} Bh7 {[%emt 0:00:01]} 9. Bd3 {[%emt 0:00:00]} Bxd3 {[%emt 0:00:03]} 10. Qxd3 {[%emt 0:00:00]} e6 {[%emt 0:00:01]} 11. Bd2 {[%emt 0:00:00]} Ngf6 {[%emt 0:00:03]} 12. O-O-O {[%emt 0:00:00]} Be7 {[%emt 0:00:01]} 13. Kb1 {[%emt 0:00:00]} O-O {[%emt 0:00:51]} 14. Ne4 {[%emt 0:00:10]} c5 {[%emt 0:00:30]} 15. g4 {[%emt 0:00:00]} Nxg4 {[%emt 0:00:10]} 16. Qe2 {[%emt 0:00:00]} Qb6 {[%emt 0:00:00]} 17. Rhg1 {[%emt 0:00:00]} f5 {[%emt 0:00:00]} 18. Nxc5 {[%emt 0:00:00]} Nxc5 {[%emt 0:00:30]} 19. dxc5 {[%emt 0:00:00]} Qa6 {[%emt 0:00:00]} 20. c4 {[%emt 0:00:00]} Bf6 {[%emt 0:00:50]} 21. Bb4 {[%emt 0:00:00]} Rae8 {[%emt 0:01:00]} 22. Nd4 {[%emt 0:00:00]} Qa4 {[%emt 0:00:00]} 23. Bc3 {[%emt 0:00:00]} b6 {[%emt 0:00:00]} 24. b3 {[%emt 0:00:20]} Qa6 {[%emt 0:00:10]} 25. c6 {[%emt 0:00:00]} Qc8 {[%emt 0:00:31]} 26. Qf3 {[%emt 0:00:00]} Bxd4 {[%emt 0:00:17]} 27. Rxd4 {[%emt 0:00:00]} 1-0

[Event "9th Bangabandhu Rapid Men 2021"]
[Site "Dhaka"]
[Date "2021.04.02"]
[Round "6.4"]
[White "Islam, Khandaker Aminul"]
[Black "Manon, Reja Neer"]
[Result "1-0"]
[ECO "D02"]
[WhiteElo "2210"]
[BlackElo "2112"]
[Annotator "ChessBase"]
[PlyCount "53"]
[EventDate "2021.04.02"]
[EventType "swiss"]
[EventCountry "BAN"]
[SourceTitle "playchess.com"]
[Source "ChessBase"]
[SourceQuality "1"]
[TimeControl "1500+10"]

1. d4 {[%emt 0:00:00]} Nf6 {[%emt 0:00:00]} 2. Nf3 {[%emt 0:00:00]} e6 {[%emt 0:00:00]} 3. Bf4 {[%emt 0:00:00]} d5 {[%emt 0:00:00]} 4. e3 {[%emt 0:00:02]} Be7 {[%emt 0:00:21]} 5. h3 {[%emt 0:00:05]} b6 {[%emt 0:01:07]} 6. Nbd2 {[%emt 0:00:04]} Bb7 {[%emt 0:00:04]} 7. Bd3 {[%emt 0:00:10]} Nbd7 {[%emt 0:00:14]} 8. a4 {[%emt 0:00:06]} c5 {[%emt 0:00:21]} 9. c3 {[%emt 0:00:10]} O-O {[%emt 0:00:37]} 10. Qb1 {[%emt 0:00:39]} h6 {[%emt 0:02:05]} 11. g4 {[%emt 0:00:25]} Ne8 {[%emt 0:00:20]} 12. Rg1 {[%emt 0:00:10]} g5 {[%emt 0:01:07]} 13. Bg3 {[%emt 0:00:00]} Kg7 {[%emt 0:00:08]} 14. Ke2 {[%emt 0:00:00]} Bd6 {[%emt 0:20:56]} 15. h4 {[%emt 0:00:00]} Bxg3 {[%emt 0:00:57]} 16. Rxg3 {[%emt 0:00:00]} Rh8 {[%emt 0:00:44]} 17. Rh3 {[%emt 0:00:00]} Nd6 {[%emt 0:02:13]} 18. Qh1 {[%emt 0:00:00]} Ne4 {[%emt 0:01:16]} 19. Rg1 {[%emt 0:00:00]} Qf6 {[%emt 0:01:02]} 20. Qh2 {[%emt 0:00:00]} Rac8 {[%emt 0:00:50]} 21. Rh1 {[%emt 0:00:00]} Rhg8 {[%emt 0:03:50]} 22. hxg5 {[%emt 0:00:00]} hxg5 {[%emt 0:00:03]} 23. Rh6 {[%emt 0:01:50]} Qe7 {[%emt 0:00:38]} 24. Bb5 {[%emt 0:00:00]} Ndf6 {[%emt 0:05:03]} 25. Nxe4 {[%emt 0:00:00]} dxe4 {[%emt 0:02:52]} 26. Ne5 {[%emt 0:02:20]} a6 {[%emt 0:02:00]} 27. Rh7+ {[%emt 0:02:30]} 1-0

[Event "9th Bangabandhu Rapid Men 2021"]
[Site "Dhaka"]
[Date "2021.04.02"]
[Round "6.5"]
[White "Mollah Abdullah, Al Rakib"]
[Black "Anata, Choudhury"]
[Result "1-0"]
[ECO "E11"]
[WhiteElo "2464"]
[BlackElo "2184"]
[Annotator "ChessBase"]
[PlyCount "67"]
[EventDate "2021.04.02"]
[EventType "swiss"]
[EventCountry "BAN"]
[SourceTitle "playchess.com"]
[Source "ChessBase"]
[SourceQuality "1"]
[TimeControl "1500+10"]

1. d4 {[%emt 0:00:00]} Nf6 {[%emt 0:00:00]} 2. Nf3 {[%emt 0:00:00]} e6 {[%emt 0:00:00]} 3. c4 {[%emt 0:00:25]} Bb4+ {[%emt 0:00:09]} 4. Nbd2 {[%emt 0:00:09]} b6 {[%emt 0:00:11]} 5. a3 {[%emt 0:00:26]} Bxd2+ {[%emt 0:00:04]} 6. Bxd2 {[%emt 0:25:00]} Bb7 {[%emt 0:00:04]} 7. Bg5 {[%emt 0:00:00]} d6 {[%emt 0:00:03]} 8. e3 {[%emt 0:00:00]} Nbd7 {[%emt 0:00:04]} 9. Nd2 {[%emt 0:00:00]} h6 {[%emt 0:25:55]} 10. Bh4 {[%emt 0:00:00]} g5 {[%emt 0:00:00]} 11. Bg3 {[%emt 0:00:00]} Qe7 {[%emt 0:00:00]} 12. f3 {[%emt 0:00:00]} h5 {[%emt 0:00:00]} 13. Be2 {[%emt 0:00:00]} h4 {[%emt 0:00:00]} 14. Bf2 {[%emt 0:00:00]} h3 {[%emt 0:00:00]} 15. g3 {[%emt 0:01:30]} Ng4 {[%emt 0:00:00]} 16. Bg1 {[%emt 0:00:00]} f5 {[%emt 0:00:00]} 17. Qc2 {[%emt 0:00:00]} O-O-O {[%emt 0:00:00]} 18. O-O-O {[%emt 0:00:00]} Rdf8 {[%emt 0:00:00]} 19. Kb1 {[%emt 0:00:00]} Kb8 {[%emt 0:00:00]} 20. Nb3 {[%emt 0:00:00]} Ngf6 {[%emt 0:00:00]} 21. d5 {[%emt 0:00:00]} exd5 {[%emt 0:00:00]} 22. Nd4 {[%emt 0:00:00]} Ne5 {[%emt 0:00:00]} 23. Nxf5 {[%emt 0:00:00]} Qh7 {[%emt 0:00:00]} 24. cxd5 {[%emt 0:00:00]} g4 {[%emt 0:00:00]} 25. f4 {[%emt 0:00:00]} Bxd5 {[%emt 0:00:55]} 26. Rxd5 {[%emt 0:00:00]} Nxd5 {[%emt 0:00:03]} 27. e4 {[%emt 0:00:00]} Nf3 {[%emt 0:00:05]} 28. Nd4 {[%emt 0:00:00]} Nxg1 {[%emt 0:01:07]} 29. Rxg1 {[%emt 0:00:00]} Nf6 {[%emt 0:00:13]} 30. Bd3 {[%emt 0:00:00]} Qh5 {[%emt 0:00:38]} 31. Nc6+ {[%emt 0:00:00]} Kb7 {[%emt 0:00:04]} 32. Rc1 {[%emt 0:00:00]} Rf7 {[%emt 0:00:45]} 33. Qc4 {[%emt 0:00:26]} Ne8 {[%emt 0:00:00]} 34. Qa6+ {[%emt 0:00:09]} 1-0

[Event "9th Bangabandhu Rapid Men 2021"]
[Site "Dhaka"]
[Date "2021.04.02"]
[Round "6.6"]
[White "Reefat, Bin-Sattar"]
[Black "Rafi, Islam"]
[Result "1-0"]
[ECO "B40"]
[WhiteElo "2401"]
[BlackElo "1788"]
[Annotator "ChessBase"]
[PlyCount "73"]
[EventDate "2021.04.02"]
[EventType "swiss"]
[EventCountry "BAN"]
[SourceTitle "playchess.com"]
[Source "ChessBase"]
[SourceQuality "1"]
[TimeControl "1500+10"]

1. e4 {[%emt 0:00:00]} c5 {[%emt 0:00:00]} 2. b3 {[%emt 0:00:03]} e6 {[%emt 0:00:20]} 3. Nf3 {[%emt 0:00:02]} a6 {[%emt 0:00:30]} 4. Bb2 {[%emt 0:01:04]} d6 {[%emt 0:00:58]} 5. d4 {[%emt 0:00:08]} cxd4 {[%emt 0:00:04]} 6. Nxd4 {[%emt 0:00:01]} Nf6 {[%emt 0:00:04]} 7. Nd2 {[%emt 0:00:42]} b5 {[%emt 0:00:39]} 8. a4 {[%emt 0:00:56]} b4 {[%emt 0:00:25]} 9. Bd3 {[%emt 0:03:50]} Bb7 {[%emt 0:01:32]} 10. Qe2 {[%emt 0:01:12]} Nbd7 {[%emt 0:01:24]} 11. f4 {[%emt 0:00:37]} Be7 {[%emt 0:00:56]} 12. O-O-O {[%emt 0:06:43]} Qc7 {[%emt 0:02:11]} 13. g4 {[%emt 0:00:09]} Nc5 {[%emt 0:00:18]} 14. g5 {[%emt 0:00:06]} Nfd7 {[%emt 0:00:32]} 15. Kb1 {[%emt 0:00:02]} O-O-O {[%emt 0:00:46]} 16. Rhf1 {[%emt 0:00:52]} Kb8 {[%emt 0:02:29]} 17. h4 {[%emt 0:00:34]} Rc8 {[%emt 0:03:51]} 18. Rc1 {[%emt 0:00:10]} h6 {[%emt 0:01:16]} 19. c3 {[%emt 0:04:36]} Nxd3 {[%emt 0:01:00]} 20. Qxd3 {[%emt 0:00:02]} Nc5 {[%emt 0:00:02]} 21. Qe3 {[%emt 0:00:29]} bxc3 {[%emt 0:00:16]} 22. Rxc3 {[%emt 0:00:04]} Qd7 {[%emt 0:00:43]} 23. Ka2 {[%emt 0:00:56]} hxg5 {[%emt 0:00:09]} 24. hxg5 {[%emt 0:00:08]} Rh2 {[%emt 0:00:59]} 25. Rfc1 {[%emt 0:00:15]} Rch8 {[%emt 0:01:50]} 26. N4f3 {[%emt 0:00:28]} Rh1 {[%emt 0:00:42]} 27. Rxh1 {[%emt 0:00:14]} Rxh1 {[%emt 0:00:01]} 28. Qd4 {[%emt 0:00:02]} e5 {[%emt 0:04:08]} 29. fxe5 {[%emt 0:00:22]} Ne6 {[%emt 0:00:02]} 30. Qb6 {[%emt 0:01:11]} d5 {[%emt 0:01:27]} 31. exd5 {[%emt 0:00:44]} Qxd5 {[%emt 0:00:04]} 32. Nc4 {[%emt 0:00:02]} Qd1 {[%emt 0:00:24]} 33. Nfd2 {[%emt 0:00:01]} Rh8 {[%emt 0:00:13]} 34. Na5 {[%emt 0:00:10]} Qh1 {[%emt 0:00:09]} 35. Nf3 {[%emt 0:00:47]} Nd8 {[%emt 0:00:14]} 36. Rd3 {[%emt 0:00:14]} Bc5 {[%emt 0:00:22]} 37. Rxd8+ {[%emt 0:03:14]} 1-0

[Event "9th Bangabandhu Rapid Men 2021"]
[Site "Dhaka"]
[Date "2021.04.02"]
[Round "6.7"]
[White "Mohammed Abdul, Malek"]
[Black "Mohammad Minhaz Uddin"]
[Result "1/2-1/2"]
[ECO "E11"]
[WhiteElo "2125"]
[BlackElo "2281"]
[Annotator "ChessBase"]
[PlyCount "82"]
[EventDate "2021.04.02"]
[EventType "swiss"]
[EventCountry "BAN"]
[SourceTitle "playchess.com"]
[Source "ChessBase"]
[SourceQuality "1"]
[TimeControl "1500+10"]

1. d4 {[%emt 0:00:00]} Nf6 {[%emt 0:00:00]} 2. c4 {[%emt 0:00:00]} e6 {[%emt 0:00:00]} 3. Nf3 {[%emt 0:00:00]} Bb4+ {[%emt 0:00:00]} 4. Bd2 {[%emt 0:00:00]} Qe7 {[%emt 0:00:09]} 5. e3 {[%emt 0:00:09]} Nc6 {[%emt 0:00:05]} 6. Be2 {[%emt 0:00:16]} O-O {[%emt 0:00:04]} 7. O-O {[%emt 0:00:02]} Bxd2 {[%emt 0:01:08]} 8. Qxd2 {[%emt 0:00:13]} Ne4 {[%emt 0:00:42]} 9. Qc2 {[%emt 0:00:03]} f5 {[%emt 0:00:02]} 10. Nc3 {[%emt 0:00:02]} Nxc3 {[%emt 0:00:15]} 11. Qxc3 {[%emt 0:00:04]} d6 {[%emt 0:24:25]} 12. b4 {[%emt 0:00:53]} Qf6 {[%emt 0:00:00]} 13. b5 {[%emt 0:01:15]} Ne7 {[%emt 0:00:00]} 14. a4 {[%emt 0:00:13]} b6 {[%emt 0:00:00]} 15. a5 {[%emt 0:00:46]} Bb7 {[%emt 0:00:00]} 16. Rfc1 {[%emt 0:00:45]} h6 {[%emt 0:00:00]} 17. c5 {[%emt 0:03:52]} bxc5 {[%emt 0:00:00]} 18. dxc5 {[%emt 0:00:16]} Qxc3 {[%emt 0:00:00]} 19. Rxc3 {[%emt 0:00:01]} Bxf3 {[%emt 0:00:00]} 20. Bxf3 {[%emt 0:00:28]} d5 {[%emt 0:00:00]} 21. a6 {[%emt 0:01:31]} Rfb8 {[%emt 0:00:00]} 22. Rb3 {[%emt 0:01:22]} Nc6 {[%emt 0:00:00]} 23. Be2 {[%emt 0:00:23]} Ne5 {[%emt 0:00:02]} 24. Kf1 {[%emt 0:04:15]} Nd7 {[%emt 0:00:14]} 25. Rc1 {[%emt 0:00:52]} Kf7 {[%emt 0:00:10]} 26. f4 {[%emt 0:00:23]} Ke7 {[%emt 0:00:05]} 27. Kf2 {[%emt 0:00:26]} Rc8 {[%emt 0:01:28]} 28. Ke1 {[%emt 0:00:38]} Rab8 {[%emt 0:00:15]} 29. Kd2 {[%emt 0:00:16]} g5 {[%emt 0:00:22]} 30. Kd3 {[%emt 0:00:37]} g4 {[%emt 0:00:12]} 31. Kd4 {[%emt 0:00:07]} h5 {[%emt 0:00:02]} 32. Rbb1 {[%emt 0:01:37]} h4 {[%emt 0:00:05]} 33. Bd1 {[%emt 0:01:01]} Ra8 {[%emt 0:00:19]} 34. Ba4 {[%emt 0:00:38]} Rab8 {[%emt 0:00:19]} 35. Kd3 {[%emt 0:03:16]} Kd8 {[%emt 0:00:01]} 36. Kd2 {[%emt 0:00:27]} Ke7 {[%emt 0:00:02]} 37. Kd3 {[%emt 0:04:03]} Kd8 {[%emt 0:00:44]} 38. Kd4 {[%emt 0:00:10]} Ke7 {[%emt 0:00:10]} 39. Rb3 Kd8 {[%emt 0:00:10]} 40. Rcb1 {[%emt 0:00:20]} Ke8 {[%emt 0:00:10]} 41. c6 Kd8 1/2-1/2

[Event "9th Bangabandhu Rapid Men 2021"]
[Site "Dhaka"]
[Date "2021.04.02"]
[Round "6.8"]
[White "Abdul, Momin"]
[Black "Rahman, Taibur"]
[Result "1/2-1/2"]
[ECO "B32"]
[WhiteElo "1944"]
[BlackElo "2189"]
[Annotator "ChessBase"]
[PlyCount "93"]
[EventDate "2021.04.02"]
[EventType "swiss"]
[EventCountry "BAN"]
[SourceTitle "playchess.com"]
[Source "ChessBase"]
[SourceQuality "1"]
[TimeControl "1500+10"]

1. e4 {[%emt 0:00:00]} c5 {[%emt 0:00:00]} 2. Nf3 {[%emt 0:00:00]} Nc6 {[%emt 0:00:00]} 3. d4 {[%emt 0:00:00]} cxd4 {[%emt 0:00:00]} 4. Nxd4 {[%emt 0:00:00]} e5 {[%emt 0:00:00]} 5. Nb5 {[%emt 0:00:02]} d6 {[%emt 0:00:00]} 6. N1c3 {[%emt 0:00:05]} a6 {[%emt 0:00:00]} 7. Na3 {[%emt 0:00:01]} b5 {[%emt 0:00:00]} 8. Nd5 {[%emt 0:00:02]} Nge7 {[%emt 0:00:01]} 9. c3 {[%emt 0:00:26]} Nxd5 {[%emt 0:00:07]} 10. Qxd5 {[%emt 0:01:19]} Bb7 {[%emt 0:00:01]} 11. Nc2 {[%emt 0:00:42]} Qc7 {[%emt 0:00:41]} 12. Qd3 {[%emt 0:00:14]} Ne7 {[%emt 0:00:35]} 13. Ne3 {[%emt 0:00:11]} Rd8 {[%emt 0:00:29]} 14. c4 {[%emt 0:01:21]} bxc4 {[%emt 0:00:49]} 15. Qxc4 {[%emt 0:00:24]} Qb8 {[%emt 0:02:07]} 16. Qa4+ {[%emt 0:00:54]} Bc6 {[%emt 0:04:13]} 17. Qxa6 {[%emt 0:00:08]} Qb4+ {[%emt 0:00:31]} 18. Bd2 {[%emt 0:00:16]} Qxb2 {[%emt 0:00:06]} 19. Rc1 {[%emt 0:00:06]} Ra8 {[%emt 0:01:51]} 20. Qd3 {[%emt 0:00:01]} Qd4 {[%emt 0:00:35]} 21. Qb3 {[%emt 0:02:05]} Qa4 {[%emt 0:02:23]} 22. Qb6 {[%emt 0:02:25]} Bd7 {[%emt 0:00:50]} 23. Bc4 {[%emt 0:00:28]} Nc8 {[%emt 0:01:08]} 24. Qb2 {[%emt 0:00:44]} Be7 {[%emt 0:00:48]} 25. Bd5 {[%emt 0:01:56]} Ra7 {[%emt 0:00:12]} 26. O-O {[%emt 0:02:24]} O-O {[%emt 0:00:05]} 27. Rc4 {[%emt 0:00:03]} Qa6 {[%emt 0:00:16]} 28. Rfc1 {[%emt 0:00:10]} Nb6 {[%emt 0:03:35]} 29. Rb4 {[%emt 0:01:04]} Na4 {[%emt 0:01:48]} 30. Qa3 {[%emt 0:01:20]} Nc5 {[%emt 0:01:29]} 31. Qxa6 {[%emt 0:00:02]} Rxa6 {[%emt 0:00:02]} 32. Rcb1 {[%emt 0:00:10]} Be6 {[%emt 0:00:20]} 33. Rb8 {[%emt 0:00:54]} g6 {[%emt 0:00:39]} 34. Rxf8+ {[%emt 0:01:19]} Kxf8 {[%emt 0:00:20]} 35. Rb8+ {[%emt 0:00:40]} Kg7 {[%emt 0:00:04]} 36. Bb4 {[%emt 0:00:59]} Bxd5 {[%emt 0:01:42]} 37. Nxd5 {[%emt 0:00:08]} Rxa2 {[%emt 0:00:11]} 38. f3 {[%emt 0:00:06]} Bh4 {[%emt 0:00:21]} 39. g3 {[%emt 0:00:11]} Bg5 {[%emt 0:00:07]} 40. Bxc5 {[%emt 0:00:08]} dxc5 {[%emt 0:00:01]} 41. f4 {[%emt 0:00:02]} exf4 {[%emt 0:00:40]} 42. gxf4 {[%emt 0:00:01]} Bh4 {[%emt 0:00:00]} 43. Rc8 {[%emt 0:00:12]} Bf2+ {[%emt 0:00:18]} 44. Kh1 {[%emt 0:00:35]} h5 {[%emt 0:00:10]} 45. e5 {[%emt 0:00:08]} h4 {[%emt 0:00:04]} 46. Nf6 {[%emt 0:00:18]} h3 {[%emt 0:01:24]} 47. Rg8+ {[%emt 0:00:29]} 1/2-1/2

[Event "9th Bangabandhu Rapid Men 2021"]
[Site "Dhaka"]
[Date "2021.04.03"]
[Round "8.3"]
[White "Mollah Abdullah, Al Rakib"]
[Black "Hossain, Enamul"]
[Result "1/2-1/2"]
[ECO "D30"]
[WhiteElo "2463"]
[BlackElo "2426"]
[Annotator "ChessBase"]
[PlyCount "85"]
[EventDate "2021.04.02"]
[EventType "swiss"]
[EventCountry "BAN"]
[SourceTitle "playchess.com"]
[Source "ChessBase"]
[SourceQuality "1"]
[TimeControl "1500+10"]

1. d4 {[%emt 0:00:00]} d5 {[%emt 0:25:10]} 2. c4 {[%emt 0:00:00]} e6 {[%emt 0:00:00]} 3. Nf3 {[%emt 0:25:30]} c5 {[%emt 0:00:20]} 4. Bg5 {[%emt 0:00:00]} Be7 {[%emt 0:00:00]} 5. Bxe7 {[%emt 0:00:00]} Nxe7 {[%emt 0:00:20]} 6. dxc5 {[%emt 0:00:00]} Qa5+ {[%emt 0:00:00]} 7. Nc3 {[%emt 0:00:00]} dxc4 {[%emt 0:00:20]} 8. Qd4 {[%emt 0:00:50]} O-O {[%emt 0:00:10]} 9. Qxc4 {[%emt 0:00:00]} Na6 {[%emt 0:00:00]} 10. e3 {[%emt 0:00:20]} Qxc5 {[%emt 0:00:20]} 11. Qxc5 {[%emt 0:00:00]} Nxc5 {[%emt 0:00:00]} 12. O-O-O {[%emt 0:00:00]} a5 {[%emt 0:00:20]} 13. Bb5 {[%emt 0:00:30]} Rb8 {[%emt 0:00:10]} 14. Rd6 {[%emt 0:00:00]} Nf5 {[%emt 0:00:00]} 15. Rd2 {[%emt 0:00:00]} b6 {[%emt 0:00:00]} 16. e4 {[%emt 0:00:00]} Ne7 {[%emt 0:00:00]} 17. Ne5 {[%emt 0:00:00]} Bb7 {[%emt 0:00:00]} 18. f3 {[%emt 0:00:50]} Rfc8 {[%emt 0:00:50]} 19. Rhd1 {[%emt 0:00:00]} g5 {[%emt 0:00:10]} 20. Kb1 {[%emt 0:00:20]} Bc6 {[%emt 0:00:10]} 21. Rd6 {[%emt 0:00:10]} Bxb5 {[%emt 0:00:00]} 22. Nxb5 {[%emt 0:00:10]} Ng6 {[%emt 0:00:20]} 23. Nxg6 {[%emt 0:00:00]} hxg6 {[%emt 0:00:10]} 24. e5 {[%emt 0:00:20]} Kg7 {[%emt 0:00:00]} 25. b3 {[%emt 0:00:10]} Rh8 {[%emt 0:00:00]} 26. h3 {[%emt 0:00:10]} Rh5 {[%emt 0:00:00]} 27. Na7 {[%emt 0:00:00]} Rb7 {[%emt 0:00:00]} 28. Nc6 {[%emt 0:00:00]} Rc7 {[%emt 0:00:00]} 29. Kb2 {[%emt 0:00:30]} Rh8 {[%emt 0:00:00]} 30. Nd4 {[%emt 0:00:10]} Rb7 {[%emt 0:01:10]} 31. Nb5 {[%emt 0:00:00]} Rh5 {[%emt 0:00:00]} 32. Rd8 {[%emt 0:00:00]} Rh8 {[%emt 0:00:00]} 33. Rxh8 {[%emt 0:00:00]} Kxh8 {[%emt 0:00:00]} 34. Rd8+ {[%emt 0:00:00]} Kg7 {[%emt 0:00:00]} 35. Nd6 {[%emt 0:00:00]} Rd7 {[%emt 0:00:50]} 36. Rxd7 {[%emt 0:00:00]} Nxd7 {[%emt 0:00:00]} 37. Nc4 {[%emt 0:00:00]} b5 {[%emt 0:00:00]} 38. Nxa5 {[%emt 0:00:00]} Nxe5 {[%emt 0:00:00]} 39. Kc3 {[%emt 0:00:00]} f5 {[%emt 0:00:00]} 40. Kd4 {[%emt 0:00:00]} Kf6 {[%emt 0:00:00]} 41. a4 {[%emt 0:01:50]} bxa4 {[%emt 0:00:00]} 42. bxa4 {[%emt 0:00:00]} g4 {[%emt 0:00:00]} 43. h4 {[%emt 0:00:00]} 1/2-1/2